[Event "*** Titled Tuesday Blitz"]
[Site "Chess.com"]
[Date "2019.11.05"]
[Round "10"]
[White "Orest_Vovk"]
[Black "RitvarsReimanis"]
[Result "1/2-1/2"]
[WhiteElo "2430"]
[BlackElo "2591"]
[TimeControl "180+2"]
[EndTime "15:21:31 PST"]
[Termination "Game drawn by agreement"]

1. h3 {[%clk 0:03:01.9]} 1... b6 {[%clk 0:03:00.4]} 2. Nf3 {[%clk 0:02:57.6]}
2... Bb7 {[%clk 0:03:01.5]} 3. d4 {[%clk 0:02:49]} 3... Nf6 {[%clk 0:03:01.7]}
4. c4 {[%clk 0:02:49.5]} 4... e6 {[%clk 0:03:03]} 5. Nc3 {[%clk 0:02:50.4]} 5...
Bb4 {[%clk 0:03:01.3]} 6. Bd2 {[%clk 0:02:49.8]} 6... d5 {[%clk 0:03:00.5]} 7.
cxd5 {[%clk 0:02:49.1]} 7... Nxd5 {[%clk 0:02:58.9]} 8. Nxd5 {[%clk 0:02:45.1]}
8... Bxd2+ {[%clk 0:02:59.7]} 9. Qxd2 {[%clk 0:02:42.9]} 9... Bxd5 {[%clk
0:03:00.9]} 10. e3 {[%clk 0:02:42.6]} 10... O-O {[%clk 0:03:01.9]} 11. Be2
{[%clk 0:02:43.1]} 11... Nd7 {[%clk 0:03:03.2]} 12. O-O {[%clk 0:02:43.6]} 12...
c5 {[%clk 0:03:04.8]} 13. dxc5 {[%clk 0:02:43.8]} 13... Nxc5 {[%clk 0:03:06.1]}
14. Qd4 {[%clk 0:02:36.7]} 14... Qe7 {[%clk 0:02:52.1]} 15. Rfd1 {[%clk
0:02:35.6]} 15... Rfd8 {[%clk 0:02:49.8]} 16. Qf4 {[%clk 0:02:34.7]} 16... Qf6
{[%clk 0:02:40.9]} 17. Qxf6 {[%clk 0:02:34.8]} 17... gxf6 {[%clk 0:02:42.8]} 18.
b3 {[%clk 0:02:36.1]} 18... Be4 {[%clk 0:02:37.6]} 19. Rxd8+ {[%clk 0:02:33.8]}
19... Rxd8 {[%clk 0:02:37.4]} 20. Rd1 {[%clk 0:02:33.2]} 20... Rxd1+ {[%clk
0:02:28.3]} 21. Bxd1 {[%clk 0:02:35.1]} 21... a5 {[%clk 0:02:23.2]} 22. Nd2
{[%clk 0:02:31.5]} 22... Bd3 {[%clk 0:02:20.9]} 23. f3 {[%clk 0:02:32.3]} 23...
Kf8 {[%clk 0:02:17.5]} 24. Kf2 {[%clk 0:02:32.9]} 24... f5 {[%clk 0:02:16.6]}
25. Be2 {[%clk 0:02:33.1]} 25... Ke7 {[%clk 0:02:05.1]} 26. Ke1 {[%clk
0:02:33.1]} 26... Kd6 {[%clk 0:02:01]} 27. Bxd3 {[%clk 0:02:31.9]} 27... Nxd3+
{[%clk 0:02:02]} 28. Kd1 {[%clk 0:02:32.6]} 28... b5 {[%clk 0:02:01.2]} 29. Nb1
{[%clk 0:02:23.5]} 29... Kc5 {[%clk 0:01:57.6]} 30. Kd2 {[%clk 0:02:21.2]} 30...
Nb4 {[%clk 0:01:54.4]} 31. Nc3 {[%clk 0:02:16.3]} 31... h5 {[%clk 0:01:47.2]}
32. a3 {[%clk 0:02:12.2]} 32... Nc6 {[%clk 0:01:47.2]} 33. Ne2 {[%clk
0:02:09.5]} 33... h4 {[%clk 0:01:30]} 34. Kc3 {[%clk 0:02:06.2]} 34... b4+
{[%clk 0:01:26.4]} 35. axb4+ {[%clk 0:02:06.5]} 35... Nxb4 {[%clk 0:01:28.3]}
36. g3 {[%clk 0:02:02.4]} 36... Nd5+ {[%clk 0:01:23.7]} 37. Kd2 {[%clk
0:02:02.7]} 37... Kb4 {[%clk 0:01:15.1]} 38. gxh4 {[%clk 0:01:56.6]} 38... Kxb3
{[%clk 0:01:14.3]} 39. h5 {[%clk 0:01:57.6]} 39... a4 {[%clk 0:01:10.4]} 40. h6
{[%clk 0:01:56.8]} 40... Nf6 {[%clk 0:01:11.7]} 41. Kd3 {[%clk 0:01:50.3]} 41...
a3 {[%clk 0:01:05]} 42. f4 {[%clk 0:01:30.4]} 42... a2 {[%clk 0:00:25.6]} 43.
Nc1+ {[%clk 0:01:30.7]} 43... Kb2 {[%clk 0:00:26.8]} 44. Nxa2 {[%clk 0:01:32.6]}
44... Kxa2 {[%clk 0:00:28.7]} 45. Kd4 {[%clk 0:01:33.4]} 45... Kb3 {[%clk
0:00:28.1]} 46. Ke5 {[%clk 0:01:34]} 46... Nh7 {[%clk 0:00:26.7]} 47. Kd6 {[%clk
0:01:34.6]} 47... Nf6 {[%clk 0:00:21.6]} 48. Ke7 {[%clk 0:00:58.3]} 48... Ng8+
{[%clk 0:00:22.4]} 49. Kxf7 {[%clk 0:00:58.9]} 49... Nxh6+ {[%clk 0:00:23.9]}
50. Kxe6 {[%clk 0:00:53.4]} 50... Kc4 {[%clk 0:00:24.3]} 51. Kf6 {[%clk
0:00:51.9]} 51... Kd3 {[%clk 0:00:20.3]} 52. Kg6 {[%clk 0:00:51.5]} 52... Kxe3
{[%clk 0:00:19.1]} 53. Kxh6 {[%clk 0:00:51.2]} 53... Kxf4 {[%clk 0:00:20.3]} 54.
Kg6 {[%clk 0:00:47.2]} 54... Ke5 {[%clk 0:00:12.2]} 55. h4 {[%clk 0:00:43.4]}
55... f4 {[%clk 0:00:13.7]} 56. h5 {[%clk 0:00:45.3]} 56... f3 {[%clk
0:00:15.2]} 57. h6 {[%clk 0:00:47.2]} 57... f2 {[%clk 0:00:16.8]} 58. h7 {[%clk
0:00:49.1]} 58... f1=Q {[%clk 0:00:17.6]} 59. h8=Q+ {[%clk 0:00:51]} 59... Kd5
{[%clk 0:00:17.2]} 60. Qa8+ {[%clk 0:00:49.8]} 60... Kd4 {[%clk 0:00:17.4]} 61.
Qa7+ {[%clk 0:00:48.8]} 61... Kc3 {[%clk 0:00:16.7]} 62. Qa3+ {[%clk 0:00:47.9]}
62... Kd2 {[%clk 0:00:14.5]} 63. Qb2+ {[%clk 0:00:46.6]} 63... Ke1 {[%clk
0:00:14.9]} 1/2-1/2

[Event "*** Titled Tuesday Blitz"]
[Site "Chess.com"]
[Date "2019.11.05"]
[Round "10"]
[White "wonderfultime"]
[Black "liczner"]
[Result "0-1"]
[WhiteElo "2937"]
[BlackElo "2814"]
[TimeControl "180+2"]
[EndTime "15:21:33 PST"]
[Termination "liczner won by resignation"]

1. d4 {[%clk 0:02:51.3]} 1... Nf6 {[%clk 0:02:46.3]} 2. Nf3 {[%clk 0:02:52.3]}
2... g6 {[%clk 0:02:47.3]} 3. Bg5 {[%clk 0:02:52.9]} 3... Bg7 {[%clk 0:02:48.4]}
4. Nbd2 {[%clk 0:02:54.3]} 4... d5 {[%clk 0:02:48.8]} 5. e3 {[%clk 0:02:54.5]}
5... c5 {[%clk 0:02:45.9]} 6. c3 {[%clk 0:02:55.7]} 6... O-O {[%clk 0:02:42.2]}
7. Bd3 {[%clk 0:02:56.8]} 7... b6 {[%clk 0:02:20.5]} 8. O-O {[%clk 0:02:56.8]}
8... Ba6 {[%clk 0:02:19.3]} 9. Bxa6 {[%clk 0:02:56.1]} 9... Nxa6 {[%clk
0:02:21.2]} 10. Ne5 {[%clk 0:02:55.4]} 10... Nb8 {[%clk 0:02:15.1]} 11. Bh4
{[%clk 0:02:42]} 11... Nfd7 {[%clk 0:01:50.2]} 12. f4 {[%clk 0:02:41.6]} 12...
f6 {[%clk 0:01:37.9]} 13. Qf3 {[%clk 0:02:26.5]} 13... Nxe5 {[%clk 0:01:31]} 14.
fxe5 {[%clk 0:02:23]} 14... fxe5 {[%clk 0:01:25.7]} 15. Qg4 {[%clk 0:02:24.5]}
15... Rxf1+ {[%clk 0:01:11.9]} 16. Rxf1 {[%clk 0:02:23.9]} 16... Qd7 {[%clk
0:01:13.1]} 17. Qf3 {[%clk 0:01:18.8]} 17... Nc6 {[%clk 0:01:03.1]} 18. dxc5
{[%clk 0:01:16.1]} 18... Rf8 {[%clk 0:00:57.2]} 19. Qe2 {[%clk 0:01:13]} 19...
Rxf1+ {[%clk 0:00:54.3]} 20. Qxf1 {[%clk 0:01:14.9]} 20... bxc5 {[%clk
0:00:55.5]} 21. Qb5 {[%clk 0:01:10.5]} 21... Bh6 {[%clk 0:00:29.3]} 22. Qxc5
{[%clk 0:00:55.7]} 22... Qd6 {[%clk 0:00:28.8]} 23. Qxd6 {[%clk 0:00:16.3]}
23... Bxe3+ {[%clk 0:00:29.2]} 24. Bf2 {[%clk 0:00:12.9]} 24... Bxf2+ {[%clk
0:00:29.5]} 25. Kxf2 {[%clk 0:00:14.8]} 25... exd6 {[%clk 0:00:31.4]} 26. c4
{[%clk 0:00:16.7]} 26... dxc4 {[%clk 0:00:22.4]} 27. Nxc4 {[%clk 0:00:18.6]}
27... d5 {[%clk 0:00:23.8]} 28. Ne3 {[%clk 0:00:19.8]} 28... d4 {[%clk
0:00:13.9]} 29. Nc4 {[%clk 0:00:21.1]} 29... e4 {[%clk 0:00:12.7]} 30. Nd6
{[%clk 0:00:21.4]} 30... e3+ {[%clk 0:00:12.1]} 31. Kf3 {[%clk 0:00:22.4]} 31...
Kg7 {[%clk 0:00:07.2]} 32. a3 {[%clk 0:00:12.9]} 32... Kf6 {[%clk 0:00:07.1]}
33. b4 {[%clk 0:00:13.8]} 33... Ke5 {[%clk 0:00:07.9]} 34. Nf7+ {[%clk
0:00:11.2]} 34... Kd5 {[%clk 0:00:09]} 35. Ng5 {[%clk 0:00:12.6]} 35... Ne5+
{[%clk 0:00:09.4]} 36. Ke2 {[%clk 0:00:13.6]} 36... h6 {[%clk 0:00:10.7]} 37.
Nh7 {[%clk 0:00:14]} 37... Nd7 {[%clk 0:00:08.3]} 38. g4 {[%clk 0:00:15.1]}
38... Ke4 {[%clk 0:00:08.1]} 39. g5 {[%clk 0:00:16.3]} 39... d3+ {[%clk
0:00:08.7]} 40. Ke1 {[%clk 0:00:17.7]} 40... hxg5 {[%clk 0:00:09.2]} 41. Nxg5+
{[%clk 0:00:18.7]} 41... Kd4 {[%clk 0:00:10.7]} 42. b5 {[%clk 0:00:16.1]} 42...
Nc5 {[%clk 0:00:10.4]} 43. h4 {[%clk 0:00:12.6]} 43... Kc3 {[%clk 0:00:11.4]}
44. Nf3 {[%clk 0:00:12]} 44... Nb3 {[%clk 0:00:08.1]} 45. a4 {[%clk 0:00:11.4]}
45... Kc2 {[%clk 0:00:08.5]} 46. Kf1 {[%clk 0:00:04.4]} 46... d2 {[%clk
0:00:09]} 47. Ke2 {[%clk 0:00:02.2]} 47... d1=Q+ {[%clk 0:00:09.8]} 48. Kxe3
{[%clk 0:00:04.1]} 48... Qc1+ {[%clk 0:00:09.4]} 49. Ke4 {[%clk 0:00:02.7]}
49... Nd2+ {[%clk 0:00:09.4]} 50. Nxd2 {[%clk 0:00:03.3]} 50... Qxd2 {[%clk
0:00:10.9]} 0-1

[Event "*** Titled Tuesday Blitz"]
[Site "Chess.com"]
[Date "2019.11.05"]
[Round "10"]
[White "ChessQueen"]
[Black "IvanRadivojevic"]
[Result "1-0"]
[WhiteElo "2688"]
[BlackElo "2515"]
[TimeControl "180+2"]
[EndTime "15:21:48 PST"]
[Termination "ChessQueen won by resignation"]

1. Nf3 {[%clk 0:03:01.9]} 1... d6 {[%clk 0:03:00.8]} 2. e4 {[%clk 0:03:01.4]}
2... Bg4 {[%clk 0:03:00.7]} 3. d4 {[%clk 0:03:01.2]} 3... Nf6 {[%clk 0:03:01.5]}
4. Nc3 {[%clk 0:03:01.9]} 4... Nbd7 {[%clk 0:03:02.3]} 5. h3 {[%clk 0:02:46.5]}
5... Bxf3 {[%clk 0:03:01.3]} 6. Qxf3 {[%clk 0:02:47.7]} 6... e5 {[%clk
0:03:02.5]} 7. d5 {[%clk 0:02:48.7]} 7... Be7 {[%clk 0:03:02.6]} 8. Be3 {[%clk
0:02:48.6]} 8... c6 {[%clk 0:03:03.1]} 9. O-O-O {[%clk 0:02:46.7]} 9... Qa5
{[%clk 0:03:01.8]} 10. Kb1 {[%clk 0:02:47.6]} 10... O-O {[%clk 0:03:01.4]} 11.
g4 {[%clk 0:02:48.1]} 11... cxd5 {[%clk 0:02:59.6]} 12. Nxd5 {[%clk 0:02:48.8]}
12... Nxd5 {[%clk 0:02:59.5]} 13. Rxd5 {[%clk 0:02:50.1]} 13... Qc7 {[%clk
0:02:56.6]} 14. g5 {[%clk 0:02:33.4]} 14... Rac8 {[%clk 0:02:50.3]} 15. Bd3
{[%clk 0:02:32.3]} 15... Nb6 {[%clk 0:02:40.9]} 16. Bxb6 {[%clk 0:02:32.7]}
16... Qxb6 {[%clk 0:02:42.8]} 17. Rg1 {[%clk 0:02:13.3]} 17... Rc5 {[%clk
0:02:42.4]} 18. h4 {[%clk 0:02:09.2]} 18... Rfc8 {[%clk 0:02:42.9]} 19. h5
{[%clk 0:02:04.7]} 19... g6 {[%clk 0:02:28.8]} 20. hxg6 {[%clk 0:01:51.9]} 20...
hxg6 {[%clk 0:02:26.5]} 21. Qh3 {[%clk 0:01:46.9]} 21... Bf8 {[%clk 0:02:22.9]}
22. Rh1 {[%clk 0:01:36.5]} 22... Bg7 {[%clk 0:02:23.7]} 23. Qd7 {[%clk
0:01:27.7]} 23... R5c7 {[%clk 0:01:55.9]} 24. Qxd6 {[%clk 0:01:25.9]} 24... Qxf2
{[%clk 0:01:55.6]} 25. a3 {[%clk 0:01:12.3]} 25... Qf4 {[%clk 0:01:15.7]} 26. b3
{[%clk 0:00:52.4]} 26... Qxg5 {[%clk 0:01:12.7]} 27. Bc4 {[%clk 0:00:53.2]}
27... a6 {[%clk 0:00:51.3]} 28. Qb6 {[%clk 0:00:42]} 28... Qg2 {[%clk
0:00:39.9]} 29. Rhd1 {[%clk 0:00:39.6]} 29... Qxe4 {[%clk 0:00:34.2]} 30. Rd8+
{[%clk 0:00:33.6]} 30... Kh7 {[%clk 0:00:20.3]} 31. Rxc8 {[%clk 0:00:18.6]}
31... Rxc8 {[%clk 0:00:22.2]} 32. Bd3 {[%clk 0:00:20.1]} 32... Qc6 {[%clk
0:00:21.4]} 33. Qe3 {[%clk 0:00:16.8]} 33... e4 {[%clk 0:00:17.7]} 34. Qh3+
{[%clk 0:00:14.1]} 34... Kg8 {[%clk 0:00:18]} 35. Bxe4 {[%clk 0:00:15.5]} 35...
Qc3 {[%clk 0:00:15.3]} 36. Qxc3 {[%clk 0:00:14.6]} 36... Bxc3 {[%clk 0:00:17.2]}
37. Bxb7 {[%clk 0:00:15.5]} 37... Re8 {[%clk 0:00:16.5]} 38. Bxa6 {[%clk
0:00:16.8]} 38... f5 {[%clk 0:00:16.3]} 39. Bc4+ {[%clk 0:00:15.8]} 39... Kg7
{[%clk 0:00:16.9]} 40. b4 {[%clk 0:00:17.3]} 40... g5 {[%clk 0:00:12.4]} 41. Ka2
{[%clk 0:00:18.3]} 41... Re1 {[%clk 0:00:12.7]} 42. Rd7+ {[%clk 0:00:18.6]}
42... Kf6 {[%clk 0:00:13.9]} 43. Kb3 {[%clk 0:00:20.2]} 43... Be5 {[%clk
0:00:13.4]} 44. b5 {[%clk 0:00:16]} 44... g4 {[%clk 0:00:14.1]} 45. Rf7+ {[%clk
0:00:14]} 45... Kg5 {[%clk 0:00:15.1]} 46. Rf8 {[%clk 0:00:14.6]} 46... g3
{[%clk 0:00:15.3]} 47. Rg8+ {[%clk 0:00:15.8]} 47... Kf4 {[%clk 0:00:16.6]} 48.
Bd5 {[%clk 0:00:15.9]} 48... Rb1+ {[%clk 0:00:16.8]} 49. Ka4 {[%clk 0:00:14.5]}
49... Rb2 {[%clk 0:00:15.7]} 50. c4 {[%clk 0:00:15.7]} 50... Bd6 {[%clk
0:00:15.8]} 51. Ka5 {[%clk 0:00:13.8]} 51... Bxa3 {[%clk 0:00:15.1]} 52. b6
{[%clk 0:00:15.3]} 52... Bb4+ {[%clk 0:00:14.4]} 53. Ka6 {[%clk 0:00:15.6]}
53... Bc5 {[%clk 0:00:14.7]} 54. b7 {[%clk 0:00:16.9]} 54... Rb6+ {[%clk
0:00:12.6]} 55. Ka5 {[%clk 0:00:17.6]} 55... Rb2 {[%clk 0:00:05.3]} 56. b8=Q+
{[%clk 0:00:17.5]} 56... Rxb8 {[%clk 0:00:05.5]} 57. Rxb8 {[%clk 0:00:18.6]} 1-0

[Event "*** Titled Tuesday Blitz"]
[Site "Chess.com"]
[Date "2019.11.05"]
[Round "10"]
[White "Korchmar_Vasiliy"]
[Black "rasmussvane"]
[Result "1-0"]
[WhiteElo "2746"]
[BlackElo "2836"]
[TimeControl "180+2"]
[EndTime "15:21:52 PST"]
[Termination "Korchmar_Vasiliy won by resignation"]

1. d4 {[%clk 0:03:01.5]} 1... e6 {[%clk 0:03:01.4]} 2. c4 {[%clk 0:03:02.5]}
2... b6 {[%clk 0:03:03]} 3. e4 {[%clk 0:03:02.8]} 3... Bb4+ {[%clk 0:03:03.7]}
4. Bd2 {[%clk 0:03:02.3]} 4... Bxd2+ {[%clk 0:03:05]} 5. Qxd2 {[%clk 0:03:03.8]}
5... d5 {[%clk 0:03:06.5]} 6. cxd5 {[%clk 0:02:55.4]} 6... exd5 {[%clk
0:03:08.4]} 7. e5 {[%clk 0:02:57]} 7... Ne7 {[%clk 0:03:09]} 8. Nc3 {[%clk
0:02:57.1]} 8... O-O {[%clk 0:03:10.1]} 9. Nf3 {[%clk 0:02:54.2]} 9... c5 {[%clk
0:03:11.1]} 10. Bd3 {[%clk 0:02:53.8]} 10... Nbc6 {[%clk 0:03:10.9]} 11. O-O
{[%clk 0:02:48.4]} 11... Bg4 {[%clk 0:03:07.2]} 12. Ng5 {[%clk 0:02:46.7]} 12...
Bf5 {[%clk 0:02:10.4]} 13. Bxf5 {[%clk 0:02:39.2]} 13... Nxf5 {[%clk 0:02:12.3]}
14. dxc5 {[%clk 0:02:40.9]} 14... d4 {[%clk 0:01:57.3]} 15. Nb5 {[%clk
0:02:40.7]} 15... Nxe5 {[%clk 0:01:56]} 16. Qf4 {[%clk 0:02:25.5]} 16... g6
{[%clk 0:01:21.9]} 17. cxb6 {[%clk 0:02:21.7]} 17... Nd3 {[%clk 0:01:13.3]} 18.
Qd2 {[%clk 0:02:18.8]} 18... axb6 {[%clk 0:01:11.8]} 19. Nxf7 {[%clk 0:02:09.3]}
19... Rxf7 {[%clk 0:01:07.4]} 20. Qxd3 {[%clk 0:02:10.7]} 20... Qd5 {[%clk
0:01:02.3]} 21. a4 {[%clk 0:02:08.5]} 21... Rd8 {[%clk 0:01:02.9]} 22. Rfd1
{[%clk 0:02:07.9]} 22... Nh4 {[%clk 0:01:02.7]} 23. Qg3 {[%clk 0:02:00.1]} 23...
Nf5 {[%clk 0:01:03.3]} 24. Qg4 {[%clk 0:01:59.5]} 24... Re7 {[%clk 0:00:59.1]}
25. Rd3 {[%clk 0:01:53.6]} 25... Rde8 {[%clk 0:00:55.7]} 26. h3 {[%clk 0:01:30]}
26... Re1+ {[%clk 0:00:54.1]} 27. Rxe1 {[%clk 0:01:31.1]} 27... Rxe1+ {[%clk
0:00:55.8]} 28. Kh2 {[%clk 0:01:32.7]} 28... Qe5+ {[%clk 0:00:57.2]} 29. f4
{[%clk 0:01:34.2]} 29... Qe4 {[%clk 0:00:54.8]} 30. Qf3 {[%clk 0:01:25.4]} 30...
Qxf3 {[%clk 0:00:50]} 31. gxf3 {[%clk 0:01:27.3]} 31... Re2+ {[%clk 0:00:20]}
32. Kg1 {[%clk 0:01:28.4]} 32... Rxb2 {[%clk 0:00:20.4]} 33. Nxd4 {[%clk
0:01:28.2]} 33... Rb4 {[%clk 0:00:19.2]} 34. Nxf5 {[%clk 0:01:05.9]} 34... gxf5
{[%clk 0:00:21.1]} 35. Kf2 {[%clk 0:01:07.3]} 35... Rxa4 {[%clk 0:00:20.2]} 36.
Kg3 {[%clk 0:01:06.4]} 36... Ra5 {[%clk 0:00:18.5]} 37. Kh4 {[%clk 0:01:05.4]}
37... Rc5 {[%clk 0:00:15.9]} 38. Kg5 {[%clk 0:01:04.6]} 38... Kf7 {[%clk
0:00:13.4]} 39. Rd6 {[%clk 0:01:01.5]} 39... b5 {[%clk 0:00:12.8]} 40. Rb6
{[%clk 0:00:55.9]} 40... Ke7 {[%clk 0:00:11.6]} 41. h4 {[%clk 0:00:46.9]} 41...
Kd7 {[%clk 0:00:12.2]} 42. Rb7+ {[%clk 0:00:43.3]} 42... Kc8 {[%clk 0:00:07.7]}
43. Rxh7 {[%clk 0:00:45.2]} 43... b4 {[%clk 0:00:09.1]} 44. Re7 {[%clk
0:00:39.7]} 44... b3 {[%clk 0:00:09.7]} 45. Re1 {[%clk 0:00:40.1]} 45... b2
{[%clk 0:00:07]} 46. Rb1 {[%clk 0:00:40.4]} 46... Rc2 {[%clk 0:00:06.6]} 47.
Kxf5 {[%clk 0:00:35.3]} 47... Kd7 {[%clk 0:00:07.9]} 48. Kf6 {[%clk 0:00:34.2]}
48... Ke8 {[%clk 0:00:08.9]} 49. f5 {[%clk 0:00:31]} 49... Kf8 {[%clk
0:00:09.6]} 50. h5 {[%clk 0:00:32.2]} 50... Rc6+ {[%clk 0:00:09.6]} 51. Kg5
{[%clk 0:00:32.5]} 51... Rc2 {[%clk 0:00:10.8]} 52. h6 {[%clk 0:00:30.1]} 52...
Kf7 {[%clk 0:00:11.7]} 53. h7 {[%clk 0:00:19.1]} 53... Kg7 {[%clk 0:00:13.6]}
54. Rh1 {[%clk 0:00:20.1]} 54... Kh8 {[%clk 0:00:13.7]} 55. f6 {[%clk
0:00:19.8]} 55... Rh2 {[%clk 0:00:07.2]} 56. f7 {[%clk 0:00:18.5]} 56... Kg7
{[%clk 0:00:08.6]} 57. Rxh2 {[%clk 0:00:11.9]} 57... b1=Q {[%clk 0:00:07]} 58.
h8=Q+ {[%clk 0:00:13.1]} 58... Kxf7 {[%clk 0:00:08.4]} 59. Qh7+ {[%clk
0:00:14.5]} 1-0

[Event "*** Titled Tuesday Blitz"]
[Site "Chess.com"]
[Date "2019.11.05"]
[Round "10"]
[White "riconaipe"]
[Black "JSPrepz"]
[Result "1/2-1/2"]
[WhiteElo "2634"]
[BlackElo "2815"]
[TimeControl "180+2"]
[EndTime "15:22:01 PST"]
[Termination "Game drawn by repetition"]

1. d4 {[%clk 0:03:01.2]} 1... Nf6 {[%clk 0:03:00.5]} 2. c4 {[%clk 0:03:02]} 2...
c5 {[%clk 0:02:59.7]} 3. e3 {[%clk 0:02:56.5]} 3... cxd4 {[%clk 0:02:58.6]} 4.
exd4 {[%clk 0:02:57.6]} 4... g6 {[%clk 0:03:00.5]} 5. Nc3 {[%clk 0:02:54.3]}
5... Bg7 {[%clk 0:03:02.4]} 6. Nf3 {[%clk 0:02:52.5]} 6... O-O {[%clk
0:03:04.3]} 7. Be3 {[%clk 0:02:50.7]} 7... d5 {[%clk 0:03:00.2]} 8. cxd5 {[%clk
0:02:50]} 8... Nxd5 {[%clk 0:03:00.8]} 9. Bc4 {[%clk 0:02:46.2]} 9... Nb6 {[%clk
0:03:00.8]} 10. Bb3 {[%clk 0:02:47.1]} 10... Nc6 {[%clk 0:03:02.2]} 11. O-O
{[%clk 0:02:47.6]} 11... Bg4 {[%clk 0:03:03.7]} 12. h3 {[%clk 0:02:46.8]} 12...
Bxf3 {[%clk 0:03:04]} 13. Qxf3 {[%clk 0:02:48.3]} 13... Nxd4 {[%clk 0:03:02.2]}
14. Bxd4 {[%clk 0:02:47.9]} 14... Qxd4 {[%clk 0:03:02.1]} 15. Qxb7 {[%clk
0:02:46.2]} 15... Qb4 {[%clk 0:02:52.2]} 16. Rfe1 {[%clk 0:02:40.4]} 16... e6
{[%clk 0:02:38.8]} 17. Rac1 {[%clk 0:02:35.8]} 17... Qf4 {[%clk 0:02:22.3]} 18.
Rc2 {[%clk 0:02:17.1]} 18... Rfd8 {[%clk 0:02:20.8]} 19. Qe4 {[%clk 0:02:04.9]}
19... Qg5 {[%clk 0:02:19.2]} 20. h4 {[%clk 0:01:58.4]} 20... Qh5 {[%clk
0:02:19.5]} 21. Ne2 {[%clk 0:01:43.5]} 21... Nd5 {[%clk 0:02:12.4]} 22. Ng3
{[%clk 0:01:31.7]} 22... Qh6 {[%clk 0:02:12.6]} 23. Bxd5 {[%clk 0:01:25]} 23...
Rxd5 {[%clk 0:02:08.9]} 24. Qg4 {[%clk 0:00:54.2]} 24... Rad8 {[%clk 0:02:06.2]}
25. Rc7 {[%clk 0:00:52.4]} 25... Rd4 {[%clk 0:02:04.3]} 26. Qe2 {[%clk
0:00:50.9]} 26... Qxh4 {[%clk 0:01:58.4]} 27. Rxa7 {[%clk 0:00:47.8]} 27... Qf4
{[%clk 0:01:55.3]} 28. Qf3 {[%clk 0:00:44.7]} 28... Qxf3 {[%clk 0:01:54.7]} 29.
gxf3 {[%clk 0:00:46.6]} 29... Rd2 {[%clk 0:01:56.1]} 30. Re2 {[%clk 0:00:39.3]}
30... Rxe2 {[%clk 0:01:54.3]} 31. Nxe2 {[%clk 0:00:41.2]} 31... Bxb2 {[%clk
0:01:55.6]} 32. a4 {[%clk 0:00:41.5]} 32... Rd2 {[%clk 0:01:56.3]} 33. Kf1
{[%clk 0:00:42.4]} 33... Rd1+ {[%clk 0:01:55.4]} 34. Kg2 {[%clk 0:00:42.9]}
34... h5 {[%clk 0:01:49.5]} 35. a5 {[%clk 0:00:43.7]} 35... Re1 {[%clk
0:01:49.5]} 36. Ng3 {[%clk 0:00:41.8]} 36... Bd4 {[%clk 0:01:47.9]} 37. Rd7
{[%clk 0:00:42.1]} 37... Bc5 {[%clk 0:01:46.1]} 38. Ne4 {[%clk 0:00:41.9]} 38...
Bb4 {[%clk 0:01:40]} 39. a6 {[%clk 0:00:42.5]} 39... Ra1 {[%clk 0:01:40.7]} 40.
a7 {[%clk 0:00:39.2]} 40... Kg7 {[%clk 0:01:41.8]} 41. Rb7 {[%clk 0:00:27.3]}
41... Bf8 {[%clk 0:01:21]} 42. Ng5 {[%clk 0:00:28.2]} 42... Kf6 {[%clk
0:00:36.6]} 43. f4 {[%clk 0:00:29.1]} 43... Be7 {[%clk 0:00:36.3]} 44. Nh7+
{[%clk 0:00:26.3]} 44... Kg7 {[%clk 0:00:37.3]} 45. Rxe7 {[%clk 0:00:26.7]}
45... Kxh7 {[%clk 0:00:38.4]} 46. Rxf7+ {[%clk 0:00:28.1]} 46... Kh6 {[%clk
0:00:39.5]} 47. Kf3 {[%clk 0:00:28.4]} 47... Ra3+ {[%clk 0:00:37.4]} 48. Ke4
{[%clk 0:00:29.5]} 48... h4 {[%clk 0:00:36.2]} 49. Ke5 {[%clk 0:00:28.8]} 49...
h3 {[%clk 0:00:34.8]} 50. Rd7 {[%clk 0:00:19.9]} 50... h2 {[%clk 0:00:23.8]} 51.
Rd1 {[%clk 0:00:20.3]} 51... Rxa7 {[%clk 0:00:24.7]} 52. Rh1 {[%clk 0:00:21.6]}
52... Ra5+ {[%clk 0:00:23.1]} 53. Kxe6 {[%clk 0:00:22.3]} 53... Rh5 {[%clk
0:00:25]} 54. Kf6 {[%clk 0:00:21.7]} 54... Kh7 {[%clk 0:00:25.4]} 55. f3 {[%clk
0:00:20.5]} 55... Kh6 {[%clk 0:00:26.5]} 56. Kf7 {[%clk 0:00:20.4]} 56... Rh4
{[%clk 0:00:26.4]} 57. Ke6 {[%clk 0:00:21.2]} 57... Rxf4 {[%clk 0:00:21.6]} 58.
Rxh2+ {[%clk 0:00:21.7]} 58... Kg5 {[%clk 0:00:23.2]} 59. Rg2+ {[%clk
0:00:22.9]} 59... Kh5 {[%clk 0:00:24.1]} 60. Rh2+ {[%clk 0:00:24.1]} 60... Kg5
{[%clk 0:00:25.6]} 61. Rg2+ {[%clk 0:00:25.3]} 61... Kh6 {[%clk 0:00:27.1]} 62.
Rg3 {[%clk 0:00:25.4]} 62... Kh5 {[%clk 0:00:27.4]} 63. Ke5 {[%clk 0:00:26.3]}
63... g5 {[%clk 0:00:27.5]} 64. Rh3+ {[%clk 0:00:23.9]} 64... Kg6 {[%clk
0:00:24.4]} 65. Rg3 {[%clk 0:00:24.3]} 65... Ra4 {[%clk 0:00:25.3]} 66. Rh3
{[%clk 0:00:24.8]} 66... Rf4 {[%clk 0:00:18.8]} 67. Rg3 {[%clk 0:00:25.8]} 67...
Kh6 {[%clk 0:00:19.1]} 68. Rh3+ {[%clk 0:00:27.1]} 68... Kg6 {[%clk 0:00:20.6]}
1/2-1/2